[Event "*** Monthly 3|2 Blitz Masters"]
[Site "Chess.com"]
[Date "2014.10.28"]
[Round "1"]
[White "KingPetrosian"]
[Black "mat_kolosowski"]
[Result "0-1"]
[WhiteElo "2095"]
[BlackElo "2352"]
[TimeControl "180+2"]
[EndTime "12:05:17 PDT"]
[Termination "mat_kolosowski won by checkmate"]

1. e4 {[%clk 0:02:58.2]} 1... c5 {[%clk 0:02:58.5]} 2. Nf3 {[%clk 0:02:58.1]}
2... e6 {[%clk 0:02:59.7]} 3. d4 {[%clk 0:02:58.7]} 3... cxd4 {[%clk 0:03:01.6]}
4. Nxd4 {[%clk 0:03:00.6]} 4... Nc6 {[%clk 0:03:02.5]} 5. Be3 {[%clk 0:02:59.6]}
5... Nf6 {[%clk 0:03:02.2]} 6. Nc3 {[%clk 0:03:00.4]} 6... Bb4 {[%clk
0:03:00.1]} 7. Qd2 {[%clk 0:02:56.5]} 7... Nxe4 {[%clk 0:02:59.8]} 8. Qd3 {[%clk
0:02:52]} 8... Qa5 {[%clk 0:02:59.1]} 9. Nxc6 {[%clk 0:02:46.9]} 9... bxc6
{[%clk 0:02:57.1]} 10. Bd2 {[%clk 0:02:43.4]} 10... Nxd2 {[%clk 0:02:57.2]} 11.
Qxd2 {[%clk 0:02:43.6]} 11... d5 {[%clk 0:02:30.4]} 12. a3 {[%clk 0:02:21.3]}
12... O-O {[%clk 0:02:28.5]} 13. O-O-O {[%clk 0:02:10.4]} 13... Bxa3 {[%clk
0:02:16.9]} 14. bxa3 {[%clk 0:02:07.8]} 14... Qxa3+ {[%clk 0:02:17.4]} 15. Kb1
{[%clk 0:01:59.8]} 15... Rb8+ {[%clk 0:02:19.3]} 16. Nb5 {[%clk 0:01:55.3]}
16... Ba6 {[%clk 0:02:05.1]} 17. c3 {[%clk 0:01:44.4]} 17... Bxb5 {[%clk
0:02:03.4]} 18. Bxb5 {[%clk 0:01:44.6]} 18... Rxb5+ {[%clk 0:02:03.7]} 19. Kc2
{[%clk 0:01:44.5]} 19... Rb2+ {[%clk 0:02:04.7]} 20. Kd3 {[%clk 0:01:43.3]}
20... Rxd2+ {[%clk 0:02:05.3]} 21. Rxd2 {[%clk 0:01:44.3]} 21... Rb8 {[%clk
0:02:06.3]} 22. Rhd1 {[%clk 0:01:43.5]} 22... Rb2 {[%clk 0:02:05.5]} 23. Rxb2
{[%clk 0:01:43.7]} 23... Qxb2 {[%clk 0:02:06.5]} 24. Rd2 {[%clk 0:01:44.8]}
24... Qb1+ {[%clk 0:02:07.5]} 25. Ke2 {[%clk 0:01:44.1]} 25... a5 {[%clk
0:02:08.5]} 26. Rd1 {[%clk 0:01:40]} 26... Qc2+ {[%clk 0:02:07.6]} 27. Rd2
{[%clk 0:01:37.9]} 27... Qxc3 {[%clk 0:02:08.8]} 28. Rd3 {[%clk 0:01:36]} 28...
Qc4 {[%clk 0:02:08.4]} 29. Kd2 {[%clk 0:01:33.8]} 29... a4 {[%clk 0:02:10.3]}
30. Ra3 {[%clk 0:01:33.8]} 30... Qb4+ {[%clk 0:02:11]} 31. Rc3 {[%clk
0:01:33.5]} 31... a3 {[%clk 0:02:11.9]} 32. Kc2 {[%clk 0:01:34.1]} 32... Qb2+
{[%clk 0:02:12.4]} 33. Kd3 {[%clk 0:01:33.4]} 33... a2 {[%clk 0:02:13.3]} 34.
Rc2 {[%clk 0:01:32.7]} 34... Qb5+ {[%clk 0:02:11.8]} 35. Kc3 {[%clk 0:01:29.8]}
35... a1=Q+ {[%clk 0:02:13.7]} 36. Kd2 {[%clk 0:01:26.5]} 36... Qd4+ {[%clk
0:02:15.6]} 37. Kc1 {[%clk 0:01:27.1]} 37... Qf1# {[%clk 0:02:14.6]} 0-1

[Event "*** Monthly 3|2 Blitz Masters"]
[Site "Chess.com"]
[Date "2014.10.28"]
[Round "1"]
[White "liczner"]
[Black "Palacios-LLera"]
[Result "1-0"]
[WhiteElo "2429"]
[BlackElo "2200"]
[TimeControl "180+2"]
[EndTime "12:06:08 PDT"]
[Termination "liczner won by checkmate"]

1. e4 {[%clk 0:02:57.2]} 1... c5 {[%clk 0:02:58.9]} 2. Nf3 {[%clk 0:02:57.4]}
2... Nc6 {[%clk 0:03:00.2]} 3. d4 {[%clk 0:02:58.7]} 3... cxd4 {[%clk
0:03:01.4]} 4. Nxd4 {[%clk 0:03:00.2]} 4... g6 {[%clk 0:03:03]} 5. Nc3 {[%clk
0:03:01.3]} 5... Bg7 {[%clk 0:03:04.4]} 6. Nb3 {[%clk 0:03:02.7]} 6... a5 {[%clk
0:03:04.6]} 7. a4 {[%clk 0:03:02.9]} 7... Nf6 {[%clk 0:03:04.9]} 8. Be2 {[%clk
0:03:02.7]} 8... d6 {[%clk 0:03:05.9]} 9. O-O {[%clk 0:03:03.9]} 9... O-O {[%clk
0:03:07]} 10. Re1 {[%clk 0:03:04.9]} 10... Be6 {[%clk 0:03:06.4]} 11. Bf1 {[%clk
0:03:05.7]} 11... Re8 {[%clk 0:03:06.3]} 12. Nd5 {[%clk 0:03:05.3]} 12... Bxd5
{[%clk 0:03:04.3]} 13. exd5 {[%clk 0:03:04.6]} 13... Nb4 {[%clk 0:03:05.8]} 14.
Bb5 {[%clk 0:02:28.8]} 14... Nd7 {[%clk 0:02:58.5]} 15. c3 {[%clk 0:02:26.2]}
15... Na6 {[%clk 0:02:55.9]} 16. Nxa5 {[%clk 0:02:23.6]} 16... Nc7 {[%clk
0:02:42.3]} 17. Bxd7 {[%clk 0:01:47.1]} 17... Qxd7 {[%clk 0:02:43.1]} 18. Nc4
{[%clk 0:01:47.9]} 18... Ra6 {[%clk 0:02:31.1]} 19. Be3 {[%clk 0:01:23.2]} 19...
Qf5 {[%clk 0:02:06.8]} 20. Nb6 {[%clk 0:01:15.6]} 20... h5 {[%clk 0:02:03.5]}
21. h3 {[%clk 0:01:11.5]} 21... h4 {[%clk 0:01:56.7]} 22. Qd2 {[%clk 0:01:01.8]}
22... Kh7 {[%clk 0:01:34.5]} 23. Bd4 {[%clk 0:00:54.6]} 23... Bh6 {[%clk
0:01:28.9]} 24. Qe2 {[%clk 0:00:38.5]} 24... Nxd5 {[%clk 0:01:25.8]} 25. Qb5
{[%clk 0:00:38.9]} 25... Nxb6 {[%clk 0:01:19.4]} 26. Qxe8 {[%clk 0:00:38.7]}
26... Nd5 {[%clk 0:01:17.2]} 27. Qh8# {[%clk 0:00:38.8]} 1-0

[Event "*** Monthly 3|2 Blitz Masters"]
[Site "Chess.com"]
[Date "2014.10.28"]
[Round "1"]
[White "exoticprincess"]
[Black "GMHess"]
[Result "1-0"]
[WhiteElo "2405"]
[BlackElo "2433"]
[TimeControl "180+2"]
[EndTime "12:06:27 PDT"]
[Termination "exoticprincess won by resignation"]

1. e4 {[%clk 0:02:17.6]} 1... e5 {[%clk 0:02:57.5]} 2. Nf3 {[%clk 0:02:17.8]}
2... Nc6 {[%clk 0:02:57.2]} 3. c3 {[%clk 0:02:18.3]} 3... Nf6 {[%clk 0:02:57.7]}
4. d3 {[%clk 0:02:18.7]} 4... Be7 {[%clk 0:02:54.3]} 5. Be2 {[%clk 0:02:18.4]}
5... O-O {[%clk 0:02:55.4]} 6. O-O {[%clk 0:02:17.7]} 6... d5 {[%clk 0:02:53.8]}
7. Nbd2 {[%clk 0:02:14.5]} 7... h6 {[%clk 0:02:49.4]} 8. b4 {[%clk 0:02:14.2]}
8... a6 {[%clk 0:02:46.8]} 9. a3 {[%clk 0:02:09.2]} 9... Be6 {[%clk 0:02:39.8]}
10. Re1 {[%clk 0:02:02.5]} 10... Qd7 {[%clk 0:02:36.7]} 11. Qc2 {[%clk
0:02:02.9]} 11... Rad8 {[%clk 0:02:34.7]} 12. Nf1 {[%clk 0:02:03.7]} 12... Rfe8
{[%clk 0:02:03.6]} 13. Ng3 {[%clk 0:02:04.3]} 13... Bf8 {[%clk 0:02:04.6]} 14.
h3 {[%clk 0:02:05.4]} 14... Qd6 {[%clk 0:01:39.6]} 15. Bf1 {[%clk 0:02:04.9]}
15... dxe4 {[%clk 0:01:29.7]} 16. dxe4 {[%clk 0:02:04.7]} 16... Ne7 {[%clk
0:01:31.3]} 17. c4 {[%clk 0:02:03]} 17... Ng6 {[%clk 0:01:28]} 18. Bb2 {[%clk
0:02:03.6]} 18... c5 {[%clk 0:01:26.1]} 19. b5 {[%clk 0:02:00.4]} 19... axb5
{[%clk 0:01:18.8]} 20. cxb5 {[%clk 0:01:59.6]} 20... c4 {[%clk 0:01:18.7]} 21.
Bc3 {[%clk 0:01:54]} 21... Qc7 {[%clk 0:01:12.2]} 22. Qb2 {[%clk 0:01:52.6]}
22... Bc8 {[%clk 0:01:03.8]} 23. Rac1 {[%clk 0:01:49.1]} 23... Bc5 {[%clk
0:01:01.8]} 24. Bxc4 {[%clk 0:01:45]} 24... Bxf2+ {[%clk 0:00:47.4]} 25. Kxf2
{[%clk 0:01:34.6]} 25... Qc5+ {[%clk 0:00:26.9]} 26. Bd4 {[%clk 0:01:34.8]} 1-0

[Event "*** Monthly 3|2 Blitz Masters"]
[Site "Chess.com"]
[Date "2014.10.28"]
[Round "1"]
[White "MichiganEagle"]
[Black "dsanchez1973"]
[Result "1-0"]
[WhiteElo "2297"]
[BlackElo "1850"]
[TimeControl "180+2"]
[EndTime "12:06:29 PDT"]
[Termination "MichiganEagle won by resignation"]

1. d4 {[%clk 0:02:54.3]} 1... d5 {[%clk 0:02:55.8]} 2. Nf3 {[%clk 0:02:55.6]}
2... c6 {[%clk 0:02:56.5]} 3. c4 {[%clk 0:02:55.3]} 3... e6 {[%clk 0:02:57.5]}
4. e3 {[%clk 0:02:54.8]} 4... Nf6 {[%clk 0:02:58]} 5. Nbd2 {[%clk 0:02:52.6]}
5... Nbd7 {[%clk 0:02:58.3]} 6. b3 {[%clk 0:02:53.3]} 6... Bd6 {[%clk
0:02:59.1]} 7. Bd3 {[%clk 0:02:54.2]} 7... O-O {[%clk 0:02:58.6]} 8. Bb2 {[%clk
0:02:52.6]} 8... Re8 {[%clk 0:02:58.3]} 9. Ne5 {[%clk 0:02:49.2]} 9... Nf8
{[%clk 0:02:54.5]} 10. O-O {[%clk 0:02:48.3]} 10... Bxe5 {[%clk 0:02:45]} 11.
dxe5 {[%clk 0:02:48.6]} 11... N6d7 {[%clk 0:02:46.1]} 12. f4 {[%clk 0:02:35]}
12... Qb6 {[%clk 0:02:44.6]} 13. Qf3 {[%clk 0:02:29.9]} 13... Ng6 {[%clk
0:02:41.6]} 14. Kh1 {[%clk 0:02:20.6]} 14... Ne7 {[%clk 0:02:40.8]} 15. e4
{[%clk 0:02:09.5]} 15... a5 {[%clk 0:02:07.5]} 16. exd5 {[%clk 0:02:01.9]} 16...
cxd5 {[%clk 0:02:08.3]} 17. cxd5 {[%clk 0:01:53.7]} 17... Nxd5 {[%clk 0:02:08]}
18. Nc4 {[%clk 0:01:54.5]} 18... Qa7 {[%clk 0:01:42.7]} 19. Nd6 {[%clk
0:01:50.3]} 19... Rf8 {[%clk 0:01:43.5]} 20. f5 {[%clk 0:01:50.3]} 20... Qe3
{[%clk 0:01:31.1]} 21. fxe6 {[%clk 0:01:41.3]} 21... fxe6 {[%clk 0:01:18.1]} 22.
Qxe3 {[%clk 0:01:10.5]} 22... Nxe3 {[%clk 0:01:18.9]} 23. Rfe1 {[%clk
0:01:04.6]} 23... Ng4 {[%clk 0:01:15.5]} 24. Bc4 {[%clk 0:00:57.5]} 24... Nb6
{[%clk 0:01:04.9]} 25. Be2 {[%clk 0:00:39.6]} 25... Nf2+ {[%clk 0:00:54.3]} 26.
Kg1 {[%clk 0:00:40.1]} 26... Ne4 {[%clk 0:00:54.9]} 27. Nxe4 {[%clk 0:00:40]}
1-0

[Event "*** Monthly 3|2 Blitz Masters"]
[Site "Chess.com"]
[Date "2014.10.28"]
[Round "1"]
[White "GeorgMeier"]
[Black "marabu44"]
[Result "1-0"]
[WhiteElo "2524"]
[BlackElo "2223"]
[TimeControl "180+2"]
[EndTime "12:06:45 PDT"]
[Termination "GeorgMeier won by checkmate"]

1. Nf3 {[%clk 0:02:44.2]} 1... d5 {[%clk 0:02:55.2]} 2. g3 {[%clk 0:02:45.3]}
2... Nf6 {[%clk 0:02:55]} 3. Bg2 {[%clk 0:02:46.8]} 3... g6 {[%clk 0:02:55.3]}
4. O-O {[%clk 0:02:48.3]} 4... Bg7 {[%clk 0:02:56.5]} 5. d4 {[%clk 0:02:49.9]}
5... O-O {[%clk 0:02:53.7]} 6. Nbd2 {[%clk 0:02:51.4]} 6... Nbd7 {[%clk
0:02:50.7]} 7. c4 {[%clk 0:02:48.7]} 7... c6 {[%clk 0:02:47.3]} 8. b3 {[%clk
0:02:35.5]} 8... Nb6 {[%clk 0:02:38.1]} 9. Bb2 {[%clk 0:02:33.1]} 9... Bf5
{[%clk 0:02:37.7]} 10. Rc1 {[%clk 0:02:31.3]} 10... Be4 {[%clk 0:02:34.7]} 11.
e3 {[%clk 0:02:30.2]} 11... Bd3 {[%clk 0:02:27.1]} 12. Re1 {[%clk 0:02:30.4]}
12... Ne4 {[%clk 0:02:08]} 13. Nxe4 {[%clk 0:02:29.9]} 13... Bxe4 {[%clk
0:02:08.6]} 14. Bf1 {[%clk 0:02:27.2]} 14... Rc8 {[%clk 0:02:01.4]} 15. Nd2
{[%clk 0:02:26.4]} 15... Bf5 {[%clk 0:01:59.7]} 16. Qe2 {[%clk 0:02:26.8]} 16...
Qd7 {[%clk 0:01:58.4]} 17. e4 {[%clk 0:02:25.7]} 17... dxe4 {[%clk 0:01:56.7]}
18. Nxe4 {[%clk 0:02:27.1]} 18... Bxd4 {[%clk 0:01:45.9]} 19. Rcd1 {[%clk
0:02:16.2]} 19... c5 {[%clk 0:01:30.9]} 20. Nxc5 {[%clk 0:02:16.7]} 20... Rxc5
{[%clk 0:01:28.5]} 21. Bxd4 {[%clk 0:02:17.2]} 21... Qc7 {[%clk 0:01:16.2]} 22.
Bxc5 {[%clk 0:02:14.2]} 22... Qxc5 {[%clk 0:01:16.9]} 23. Qxe7 {[%clk
0:02:15.6]} 23... Qc8 {[%clk 0:01:00.4]} 24. Bg2 {[%clk 0:02:12.3]} 24... Nd7
{[%clk 0:00:56]} 25. Rd5 {[%clk 0:02:05.9]} 25... Nb6 {[%clk 0:00:48.8]} 26. Rd6
{[%clk 0:02:04.4]} 26... Qc5 {[%clk 0:00:41.7]} 27. Qe5 {[%clk 0:01:56.8]} 27...
Qb4 {[%clk 0:00:38.6]} 28. Red1 {[%clk 0:01:55.3]} 28... Bg4 {[%clk 0:00:27.3]}
29. R1d2 {[%clk 0:01:50.1]} 29... Qa3 {[%clk 0:00:25.9]} 30. h3 {[%clk
0:01:49.4]} 30... Bf5 {[%clk 0:00:25.3]} 31. g4 {[%clk 0:01:49.8]} 31... Bb1
{[%clk 0:00:20.3]} 32. c5 {[%clk 0:01:45.6]} 32... Nc8 {[%clk 0:00:20]} 33. Rd8
{[%clk 0:01:46.2]} 33... Bxa2 {[%clk 0:00:08.6]} 34. Rxf8+ {[%clk 0:01:45.3]}
34... Kxf8 {[%clk 0:00:09.3]} 35. Rd8# {[%clk 0:01:47.2]} 1-0

[Event "*** Monthly 3|2 Blitz Masters"]
[Site "Chess.com"]
[Date "2014.10.28"]
[Round "1"]
[White "XeresLt"]
[Black "chesstatour"]
[Result "1-0"]
[WhiteElo "2281"]
[BlackElo "1796"]
[TimeControl "180+2"]
[EndTime "12:07:33 PDT"]
[Termination "XeresLt won by resignation"]

1. e4 {[%clk 0:02:58.4]} 1... c6 {[%clk 0:02:58.6]} 2. d4 {[%clk 0:02:58.5]}
2... d5 {[%clk 0:03:00]} 3. Nc3 {[%clk 0:02:59.9]} 3... dxe4 {[%clk 0:03:00.2]}
4. Nxe4 {[%clk 0:03:01.1]} 4... Nf6 {[%clk 0:03:01.8]} 5. Nxf6+ {[%clk
0:03:01.6]} 5... gxf6 {[%clk 0:03:03.7]} 6. g3 {[%clk 0:02:58.9]} 6... Bf5
{[%clk 0:03:03.5]} 7. Bg2 {[%clk 0:02:59.6]} 7... e6 {[%clk 0:03:03]} 8. Ne2
{[%clk 0:02:58.9]} 8... h5 {[%clk 0:02:46.9]} 9. h4 {[%clk 0:02:57.4]} 9... Bd6
{[%clk 0:02:43.1]} 10. Bf4 {[%clk 0:02:54.1]} 10... Qc7 {[%clk 0:02:39.6]} 11.
O-O {[%clk 0:02:52.1]} 11... Nd7 {[%clk 0:02:39.1]} 12. c4 {[%clk 0:02:53]}
12... Bg4 {[%clk 0:02:28.3]} 13. Bxd6 {[%clk 0:02:22.4]} 13... Qxd6 {[%clk
0:02:19.6]} 14. d5 {[%clk 0:02:23.7]} 14... cxd5 {[%clk 0:01:58]} 15. cxd5
{[%clk 0:02:23.4]} 15... e5 {[%clk 0:01:50.6]} 16. Re1 {[%clk 0:02:22.5]} 16...
O-O {[%clk 0:01:30.5]} 17. Qd3 {[%clk 0:02:05.5]} 17... Kg7 {[%clk 0:01:01.8]}
18. Rac1 {[%clk 0:01:54.8]} 18... Rac8 {[%clk 0:01:01.2]} 19. f3 {[%clk
0:01:48.8]} 19... Nc5 {[%clk 0:00:58.1]} 20. Qe3 {[%clk 0:01:47]} 20... Bd7
{[%clk 0:00:57]} 21. f4 {[%clk 0:01:39.8]} 21... Rfe8 {[%clk 0:00:48.5]} 22. Qa3
{[%clk 0:01:23.4]} 22... a6 {[%clk 0:00:39.9]} 23. fxe5 {[%clk 0:01:22.8]} 23...
fxe5 {[%clk 0:00:26]} 24. Rf1 {[%clk 0:01:18.2]} 24... Bb5 {[%clk 0:00:25.5]}
25. Rf2 {[%clk 0:01:10]} 25... b6 {[%clk 0:00:19]} 26. Rcf1 {[%clk 0:01:09.2]}
26... Re7 {[%clk 0:00:18.6]} 27. Qf3 {[%clk 0:01:05.4]} 27... Qg6 {[%clk
0:00:17.6]} 28. Bh3 {[%clk 0:00:59.9]} 28... e4 {[%clk 0:00:08.8]} 29. Qc3+
{[%clk 0:00:59]} 29... Kh7 {[%clk 0:00:04.9]} 30. Bf5 {[%clk 0:00:59.4]} 30...
e3 {[%clk 0:00:03.1]} 31. Bxg6+ {[%clk 0:00:59.6]} 31... fxg6 {[%clk 0:00:05]}
32. Rf7+ {[%clk 0:01:00]} 32... Rxf7 {[%clk 0:00:04.8]} 33. Rxf7+ {[%clk
0:01:01.9]} 1-0

[Event "*** Monthly 3|2 Blitz Masters"]
[Site "Chess.com"]
[Date "2014.10.28"]
[Round "1"]
[White "GedoGluperd"]
[Black "Danesz22"]
[Result "0-1"]
[WhiteElo "2306"]
[BlackElo "2259"]
[TimeControl "180+2"]
[EndTime "12:07:35 PDT"]
[Termination "Danesz22 won by resignation"]

1. d4 {[%clk 0:02:54.9]} 1... Nf6 {[%clk 0:02:58.8]} 2. Bg5 {[%clk 0:02:56.4]}
2... d5 {[%clk 0:02:56.3]} 3. Bxf6 {[%clk 0:02:56.8]} 3... exf6 {[%clk
0:02:57.2]} 4. e3 {[%clk 0:02:58.3]} 4... c6 {[%clk 0:02:57.8]} 5. c4 {[%clk
0:02:59.1]} 5... Qb6 {[%clk 0:02:56.6]} 6. Qd2 {[%clk 0:02:58.6]} 6... dxc4
{[%clk 0:02:54.1]} 7. Bxc4 {[%clk 0:02:59]} 7... Bb4 {[%clk 0:02:54.6]} 8. Nc3
{[%clk 0:02:59.6]} 8... O-O {[%clk 0:02:55.1]} 9. Nge2 {[%clk 0:02:58.9]} 9...
Rd8 {[%clk 0:02:43.3]} 10. a3 {[%clk 0:02:57.8]} 10... Bf8 {[%clk 0:02:41.8]}
11. O-O {[%clk 0:02:58.3]} 11... Na6 {[%clk 0:02:42.5]} 12. Rac1 {[%clk
0:02:54.7]} 12... c5 {[%clk 0:02:38]} 13. d5 {[%clk 0:02:52.1]} 13... Nc7 {[%clk
0:02:37.1]} 14. e4 {[%clk 0:02:51.3]} 14... Ne8 {[%clk 0:02:28.2]} 15. Rcd1
{[%clk 0:02:42]} 15... Nd6 {[%clk 0:02:28.6]} 16. Ba2 {[%clk 0:02:41.9]} 16...
Re8 {[%clk 0:02:26.7]} 17. Ng3 {[%clk 0:02:40.1]} 17... Bd7 {[%clk 0:02:22.8]}
18. Kh1 {[%clk 0:02:40.9]} 18... g6 {[%clk 0:02:22.7]} 19. f4 {[%clk 0:02:41.6]}
19... h5 {[%clk 0:02:17.3]} 20. e5 {[%clk 0:02:35.9]} 20... fxe5 {[%clk
0:02:08.9]} 21. fxe5 {[%clk 0:02:37.1]} 21... Rxe5 {[%clk 0:02:09.3]} 22. Qf4
{[%clk 0:02:38.5]} 22... Bg7 {[%clk 0:01:58.2]} 23. Nce4 {[%clk 0:02:37.8]}
23... Nf5 {[%clk 0:01:54.6]} 24. d6 {[%clk 0:02:26.9]} 24... h4 {[%clk
0:01:55.3]} 25. Nxf5 {[%clk 0:02:26]} 25... Rxf5 {[%clk 0:01:55.9]} 26. Qxh4
{[%clk 0:02:25.2]} 26... Qxb2 {[%clk 0:01:52.2]} 27. Ng5 {[%clk 0:02:20.8]}
27... Qxa2 {[%clk 0:01:45.9]} 28. Rxf5 {[%clk 0:02:16.7]} 28... Bxf5 {[%clk
0:01:45.7]} 29. h3 {[%clk 0:01:29.4]} 29... Qe2 {[%clk 0:01:43.1]} 30. Re1
{[%clk 0:01:18.9]} 30... Qh5 {[%clk 0:01:42.7]} 31. Qf4 {[%clk 0:01:19.5]} 31...
Bh6 {[%clk 0:01:37.8]} 32. d7 {[%clk 0:01:14.6]} 32... Qxg5 {[%clk 0:01:24]} 33.
Re8+ {[%clk 0:01:13.4]} 33... Kg7 {[%clk 0:01:23.1]} 34. Qe5+ {[%clk 0:01:05]}
34... Qf6 {[%clk 0:01:22.9]} 35. Qxc5 {[%clk 0:00:57.5]} 35... Qa1+ {[%clk
0:01:11.5]} 36. Kh2 {[%clk 0:00:58.9]} 36... Bf4+ {[%clk 0:01:12.2]} 37. g3
{[%clk 0:01:00.5]} 37... Qb2+ {[%clk 0:01:00.7]} 38. Kg1 {[%clk 0:01:00.8]}
38... Qc1+ {[%clk 0:00:48.7]} 39. Qxc1 {[%clk 0:00:57]} 39... Bxc1 {[%clk
0:00:49.6]} 40. Rxa8 {[%clk 0:00:45.7]} 40... Bxd7 {[%clk 0:00:50.6]} 41. Kg2
{[%clk 0:00:46.7]} 41... Bc6+ {[%clk 0:00:50.3]} 42. Kf2 {[%clk 0:00:47.5]}
42... Bxa3 {[%clk 0:00:49.4]} 43. Ke3 {[%clk 0:00:47]} 43... Bc5+ {[%clk
0:00:50.3]} 0-1

[Event "*** Monthly 3|2 Blitz Masters"]
[Site "Chess.com"]
[Date "2014.10.28"]
[Round "1"]
[White "AlmirDzhumaev"]
[Black "vovkcoach"]
[Result "0-1"]
[WhiteElo "2210"]
[BlackElo "2517"]
[TimeControl "180+2"]
[EndTime "12:08:17 PDT"]
[Termination "vovkcoach won by resignation"]

1. e4 {[%clk 0:02:59]} 1... c5 {[%clk 0:02:58.2]} 2. Nc3 {[%clk 0:02:59.8]} 2...
e6 {[%clk 0:02:52.5]} 3. g3 {[%clk 0:02:59.2]} 3... b6 {[%clk 0:02:49.8]} 4. Bg2
{[%clk 0:03:00.6]} 4... Bb7 {[%clk 0:02:51.6]} 5. d3 {[%clk 0:03:02.1]} 5... Nf6
{[%clk 0:02:42.9]} 6. f4 {[%clk 0:03:03]} 6... d5 {[%clk 0:02:40.3]} 7. exd5
{[%clk 0:02:52.5]} 7... Nxd5 {[%clk 0:02:40.1]} 8. Nxd5 {[%clk 0:02:53.4]} 8...
Bxd5 {[%clk 0:02:42]} 9. Bxd5 {[%clk 0:02:54.5]} 9... Qxd5 {[%clk 0:02:43.3]}
10. Qf3 {[%clk 0:02:55.6]} 10... Nc6 {[%clk 0:02:43.3]} 11. Qxd5 {[%clk
0:02:51.6]} 11... exd5 {[%clk 0:02:45.2]} 12. Bd2 {[%clk 0:02:48.5]} 12... Kd7
{[%clk 0:02:45.6]} 13. O-O-O {[%clk 0:02:45.1]} 13... Bd6 {[%clk 0:02:30.3]} 14.
Nf3 {[%clk 0:02:46.1]} 14... h5 {[%clk 0:02:31.7]} 15. Rde1 {[%clk 0:02:40.2]}
15... Rae8 {[%clk 0:02:24.8]} 16. Bc3 {[%clk 0:02:27.8]} 16... f6 {[%clk
0:02:25.1]} 17. a3 {[%clk 0:02:27.9]} 17... b5 {[%clk 0:02:24.6]} 18. b3 {[%clk
0:02:26.3]} 18... a5 {[%clk 0:02:24.4]} 19. Bb2 {[%clk 0:02:26.1]} 19... d4
{[%clk 0:02:17.8]} 20. Kd2 {[%clk 0:02:23]} 20... a4 {[%clk 0:02:16.1]} 21. Rxe8
{[%clk 0:02:11.6]} 21... Rxe8 {[%clk 0:02:16.3]} 22. Re1 {[%clk 0:02:12.8]}
22... Ra8 {[%clk 0:02:16.4]} 23. bxa4 {[%clk 0:01:56.1]} 23... Rxa4 {[%clk
0:02:15.8]} 24. c3 {[%clk 0:01:50.1]} 24... dxc3+ {[%clk 0:02:10.2]} 25. Kxc3
{[%clk 0:01:51.1]} 25... Ne7 {[%clk 0:01:57.7]} 26. Kb3 {[%clk 0:01:50]} 26...
Nf5 {[%clk 0:01:58.6]} 27. Re4 {[%clk 0:01:34.3]} 27... Ra8 {[%clk 0:01:54.5]}
28. Re1 {[%clk 0:01:25.7]} 28... Kc6 {[%clk 0:01:51.5]} 29. Re6 {[%clk
0:01:25.3]} 29... Kd5 {[%clk 0:01:51.7]} 30. Re1 {[%clk 0:01:25.3]} 30... c4+
{[%clk 0:01:28.5]} 31. dxc4+ {[%clk 0:01:25.6]} 31... bxc4+ {[%clk 0:01:30.4]}
32. Ka2 {[%clk 0:01:24.1]} 32... c3 {[%clk 0:01:30.8]} 33. Bxc3 {[%clk
0:01:22.3]} 33... Bxa3 {[%clk 0:01:31.6]} 34. Kb3 {[%clk 0:01:22.9]} 34... Bc5
{[%clk 0:01:31]} 35. Nd2 {[%clk 0:01:19.7]} 35... Ne3 {[%clk 0:01:22]} 36. Nf1
{[%clk 0:01:16.5]} 36... Ra3+ {[%clk 0:01:21.3]} 37. Kb2 {[%clk 0:01:17.4]}
37... Nc4+ {[%clk 0:01:06]} 38. Kc2 {[%clk 0:01:18.3]} 38... Ra2+ {[%clk
0:01:07.1]} 39. Kb3 {[%clk 0:01:19.6]} 39... Ra3+ {[%clk 0:01:04.3]} 40. Kc2
{[%clk 0:01:20.7]} 40... Bb6 {[%clk 0:00:58.9]} 41. Rd1+ {[%clk 0:01:20]} 41...
Ke4 {[%clk 0:00:59.3]} 42. Nd2+ {[%clk 0:01:21.1]} 42... Nxd2 {[%clk 0:00:59.2]}
43. Bxd2 {[%clk 0:01:17.6]} 43... Kf3 {[%clk 0:00:52.7]} 44. Rb1 {[%clk
0:01:09.9]} 44... Be3 {[%clk 0:00:43.3]} 45. Bxe3 {[%clk 0:01:04.6]} 45... Rxe3
{[%clk 0:00:41.6]} 46. Rb7 {[%clk 0:01:03.9]} 46... g5 {[%clk 0:00:41.4]} 47.
fxg5 {[%clk 0:01:04.5]} 47... fxg5 {[%clk 0:00:43.3]} 48. Rh7 {[%clk 0:01:03.6]}
48... Re2+ {[%clk 0:00:43.1]} 49. Kd3 {[%clk 0:00:59.9]} 49... Rxh2 {[%clk
0:00:45]} 50. Rg7 {[%clk 0:00:58.9]} 50... g4 {[%clk 0:00:41]} 0-1